bitfinex/quotes_SOLUSD_20241024
["timestamp","ask_amount","ask_price","bid_price","bid_amount"]
[1729802368357,0.1,176.67,176.64,19.90681928]
[1729802371279,0.1,176.69,176.66,19.90681928]
[1729802371972,0.1,176.69,176.65,19.90681928]
[1729802372471,0.1,176.69,176.66,19.90681928]
[1729802373471,0.1,176.67,176.64,19.90681928]
[1729802379165,0.1,176.69,176.66,19.90681928]
[1729802379352,22.8177,176.73,176.62,44.027864]
[1729802379353,0.1,176.71,176.68,19.90681928]
[1729802379561,0.1,176.71,176.69,19.90681928]
[1729802379866,0.1,176.71,176.68,19.90681928]
[1729802380472,20.00681928,176.71,176.63,0.12549]
[1729802380677,0.1,176.68,176.62,44.027864]
[1729802380971,0.1,176.68,176.65,19.90681928]
[1729802381376,0.1,176.67,176.65,19.90681928]
[1729802382377,0.1,176.68,176.65,19.90681928]
[1729802383074,19.90681928,176.7,176.65,19.90681928]
[1729802383075,0.1,176.67,176.65,19.90681928]
[1729802383277,0.1,176.67,176.62,44.027864]
[1729802383464,0.1,176.67,176.64,19.90681928]
[1729802385073,0.1,176.66,176.59,0.12549]
[1729802385375,0.1,176.66,176.62,19.90681928]
[1729802386366,0.1,176.66,176.63,19.90681928]
[1729802388379,0.1,176.66,176.64,19.90681928]
[1729802388866,0.1,176.69,176.65,19.90681928]
[1729802389187,0.1,176.69,176.67,19.90681928]
[1729802389359,0.1,176.7,176.67,19.90681928]
[1729802390665,0.1,176.71,176.68,19.90681928]
[1729802390864,0.1,176.7,176.68,19.90681928]
[1729802391088,0.1,176.71,176.68,19.90681928]
[1729802391358,0.1,176.7,176.68,19.90681928]
[1729802392679,0.1,176.71,176.69,19.90681928]
[1729802392874,0.1,176.71,176.7,19.90681928]
[1729802393380,0.1,176.74,176.7,19.90681928]
[1729802393577,0.1,176.74,176.72,19.90681928]
[1729802398467,0.1,176.74,176.73,19.90681928]
[1729802407298,0.1,176.74,176.72,19.90681928]
[1729802410384,0.1,176.74,176.73,19.90681928]
[1729802413776,0.1,176.74,176.72,19.90681928]
[1729802416987,4.34638215,176.74,176.72,19.90681928]
[1729802417380,0.1,176.74,176.72,19.90681928]
[1729802418994,0.1,176.75,176.73,19.90681928]
[1729802419497,0.1,176.74,176.73,19.90681928]
[1729802419899,0.1,176.74,176.72,19.90681928]
[1729802420898,0.1,176.75,176.73,19.90681928]
[1729802421206,16.3188,176.71,176.58,7.28486699]
[1729802421398,0.1,176.69,176.55,15.415]
[1729802421697,0.1,176.63,176.57,5.86504168]
[1729802421882,0.1,176.62,176.57,5.86504168]
[1729802422088,0.1,176.62,176.59,19.90681928]
[1729802422292,0.1,176.62,176.58,19.90681928]
[1729802422603,0.1,176.62,176.59,19.90681928]
[1729802422787,0.1,176.63,176.61,19.90681928]
[1729802422984,0.1,176.64,176.62,19.90681928]
[1729802423300,0.1,176.64,176.6,19.90681928]
[1729802423681,0.1,176.62,176.56,20.0]
[1729802423883,0.1,176.62,176.58,19.90681928]
[1729802424400,0.1,176.62,176.56,20.0]
[1729802424401,0.1,176.62,176.59,19.90681928]
[1729802424876,0.1,176.63,176.59,19.90681928]
[1729802425078,0.1,176.63,176.61,19.90681928]
[1729802427095,0.1,176.66,176.57,24.153354]
[1729802427301,0.1,176.66,176.64,19.90681928]
[1729802427478,0.1,176.67,176.64,19.90681928]
[1729802427685,0.1,176.67,176.66,19.90681928]
[1729802427993,0.1,176.68,176.66,19.90681928]
[1729802428201,0.1,176.68,176.65,19.90681928]
[1729802429801,0.1,176.68,176.59,6.14189]
[1729802429802,0.1,176.69,176.67,19.90681928]
[1729802430394,0.1,176.68,176.67,19.90681928]
[1729802434603,0.1,176.67,176.61,24.027864]
[1729802434805,0.1,176.67,176.66,19.90681928]
[1729802443715,0.1,176.67,176.65,19.90681928]
[1729802444518,0.1,176.67,176.66,19.90681928]
[1729802446703,0.1,176.65,176.56,44.127864]
[1729802446911,0.1,176.65,176.63,19.90681928]
[1729802447220,0.1,176.65,176.64,19.90681928]
[1729802447401,0.1,176.64,176.63,19.90681928]
[1729802448703,0.1,176.64,176.58,24.027864]
[1729802448918,0.1,176.64,176.63,19.90681928]
[1729802449500,0.1,176.64,176.58,103.65514112]
[1729802449501,0.1,176.64,176.59,20.0]
[1729802449722,0.1,176.63,176.59,20.0]
[1729802449924,0.1,176.63,176.62,19.90681928]
[1729802450619,0.1,176.64,176.62,19.90681928]
[1729802450929,0.1,176.64,176.63,19.90681928]
[1729802451602,0.1,176.64,176.59,20.0]
[1729802451794,0.1,176.64,176.63,19.90681928]
[1729802452825,0.1,176.63,176.62,19.90681928]
[1729802454004,0.1,176.61,176.56,5.86325799]
[1729802454205,0.1,176.61,176.6,19.90681928]
[1729802456729,0.1,176.61,176.56,5.86325799]
[1729802457123,0.1,176.61,176.6,19.90681928]
[1729802458126,0.1,176.63,176.6,19.90681928]
[1729802458310,0.1,176.63,176.62,19.90681928]
[1729802462929,0.1,176.66,176.62,19.90681928]
[1729802463132,0.1,176.67,176.65,19.90681928]
[1729802463325,0.1,176.68,176.66,19.90681928]
[1729802463833,0.1,176.68,176.67,99.5340964]
[1729802464215,0.1,176.7,176.67,99.5340964]
[1729802464408,0.1,176.7,176.69,19.90681928]
[1729802465524,0.84916637,176.71,176.69,19.90681928]
[1729802465727,0.1,176.73,176.7,19.90681928]
[1729802465912,0.1,176.72,176.67,79.62727712]
[1729802466808,0.1,176.72,176.71,19.90681928]
[1729802467010,0.1,176.73,176.71,19.90681928]
[1729802467317,0.1,176.73,176.72,19.90681928]
[1729802467719,0.1,176.74,176.72,19.90681928]
[1729802468030,0.1,176.74,176.73,19.90681928]
[1729802472323,0.8487254,176.75,176.73,19.90681928]
[1729802472524,0.8487254,176.75,176.74,19.90681928]
[1729802473332,0.1,176.77,176.74,19.90681928]
[1729802473533,0.1,176.78,176.76,99.5340964]
[1729802473738,0.1,176.78,176.77,19.90681928]
[1729802473916,0.1,176.79,176.77,19.90681928]
[1729802474117,0.1,176.78,176.76,79.62727712]
[1729802474835,0.1,176.78,176.77,19.90681928]
[1729802475039,0.1,176.79,176.77,19.90681928]
[1729802475223,0.1,176.79,176.78,19.90681928]
[1729802475536,0.1,176.8,176.78,19.90681928]
[1729802475834,0.1,176.8,176.79,19.90681928]
[1729802479137,0.1,176.78,176.7,24.002374]
[1729802479435,0.1,176.78,176.77,19.90681928]
[1729802480719,0.1,176.74,176.69,2.24348782]
[1729802480922,0.1,176.74,176.73,19.90681928]
[1729802485951,0.1,176.75,176.73,19.90681928]
[1729802486134,0.1,176.75,176.74,19.90681928]
[1729802487651,0.1,176.76,176.74,19.90681928]
[1729802487853,0.1,176.76,176.75,19.90681928]
[1729802488432,0.1,176.72,176.69,43.776884]
[1729802488647,0.1,176.72,176.71,19.90681928]
[1729802492163,0.1,176.73,176.71,19.90681928]
[1729802492336,0.1,176.76,176.72,19.90681928]
[1729802492539,0.1,176.75,176.7,24.027864]
[1729802493456,0.1,176.76,176.74,19.90681928]
[1729802493639,0.1,176.76,176.75,19.90681928]
[1729802501755,0.1,176.77,176.75,19.90681928]
[1729802501956,0.1,176.77,176.76,19.90681928]
[1729802505470,0.1,176.74,176.7,24.027864]
[1729802505650,0.1,176.74,176.73,19.90681928]
[1729802507847,0.5,176.98,176.73,99.5340964]
[1729802508053,0.5,176.98,176.97,99.5340964]
[1729802508249,0.1,177.19,177.15,9.95340964]
[1729802508456,0.1,177.23,177.03,0.12549]
[1729802508654,0.1,177.23,177.1,37.73870511]
[1729802508862,2.46439314,177.25,177.12,20.0]
[1729802509172,6.6111,177.26,177.15,19.90681928]
[1729802509546,6.5111,177.26,177.15,19.90681928]
[1729802509866,0.1,177.25,177.12,0.25098]
[1729802510092,0.1,177.25,177.15,19.90681928]
[1729802510265,6.6111,177.26,177.15,78.49518335]
[1729802510576,6.5111,177.26,177.15,93.30666342]
[1729802510748,6.5111,177.26,177.15,93.43215342]
[1729802511144,6.5111,177.26,177.15,93.55764342]
[1729802511756,56.04087942,177.26,177.15,93.55764342]
[1729802512163,6.5111,177.26,177.15,93.55764342]
[1729802513252,6.5111,177.26,177.15,43.902374]
[1729802513253,49.52977942,177.23,177.15,43.902374]
[1729802513452,49.52977942,177.24,177.15,93.43215342]
[1729802513957,49.52977942,177.25,177.15,93.43215342]
[1729802514158,49.52977942,177.23,177.15,93.43215342]
[1729802514364,49.52977942,177.22,177.15,93.43215342]
[1729802514560,49.52977942,177.24,177.15,93.43215342]
[1729802514873,49.52977942,177.23,177.15,93.43215342]
[1729802515082,49.52977942,177.2,177.13,49.52977942]
[1729802515256,49.52977942,177.19,177.13,49.52977942]
[1729802515567,49.52977942,177.22,177.15,49.52977942]
[1729802516174,49.52977942,177.25,177.15,49.52977942]
[1729802516372,20.0,177.24,177.15,73.55764342]
[1729802516578,49.52977942,177.24,177.15,93.55764342]
[1729802519174,49.52977942,177.25,177.15,93.55764342]
[1729802519564,49.52977942,177.24,177.15,93.55764342]
[1729802520362,0.0970427,177.16,177.15,93.68313342]
[1729802520577,6.5111,177.26,177.17,0.12549]
[1729802520885,6.5111,177.26,177.24,23.776884]
[1729802521070,6.5111,177.26,177.23,23.776884]
[1729802521255,56.04087942,177.26,177.22,23.776884]
[1729802523466,6.5111,177.26,177.22,73.30666342]
[1729802523665,6.5111,177.26,177.23,49.52977942]
[1729802523871,6.5111,177.26,177.24,23.776884]
[1729802524070,56.04087942,177.26,177.24,23.776884]
[1729802524458,6.5111,177.26,177.23,23.776884]
[1729802525487,6.6133,177.31,177.25,49.52977942]
[1729802525783,49.52977942,177.31,177.26,73.30666342]
[1729802526164,49.02977942,177.31,177.26,73.30666342]
[1729802526380,49.52977942,177.32,177.26,73.30666342]
[1729802526768,49.52977942,177.34,177.28,73.30666342]
[1729802526970,49.52977942,177.34,177.29,49.52977942]
[1729802527369,20.5970427,177.33,177.28,73.30666342]
[1729802527571,50.12682212,177.33,177.28,73.30666342]
[1729802527982,50.12682212,177.33,177.28,23.776884]
[1729802528879,49.52977942,177.32,177.28,23.776884]
[1729802529384,50.12682212,177.33,177.28,23.776884]
[1729802530293,16.06526352,177.33,177.28,39.24510482]
[1729802530470,31.53348434,177.33,177.28,54.71332564]
[1729802530671,31.53348434,177.33,177.28,23.776884]
[1729802531490,30.93644164,177.32,177.28,23.776884]
[1729802531880,30.93644164,177.32,177.26,30.93644164]
[1729802532083,30.93644164,177.32,177.27,23.776884]
[1729802532287,31.53348434,177.33,177.27,54.71332564]
[1729802532873,30.93644164,177.32,177.27,23.776884]
[1729802533067,30.93644164,177.28,177.26,23.776884]
[1729802533404,30.93644164,177.28,177.12,30.93644164]
[1729802533405,30.93644164,177.27,177.2,30.93644164]
[1729802533567,30.93644164,177.26,177.21,30.93644164]
[1729802533974,30.93644164,177.27,177.22,30.93644164]
[1729802534493,37.02174164,177.28,177.23,30.93644164]
[1729802534670,37.02174164,177.28,177.24,23.776884]
[1729802534878,6.0853,177.28,177.24,54.71332564]
[1729802535085,46.41514164,177.29,177.24,54.71332564]
[1729802535288,30.93644164,177.3,177.26,23.776884]
[1729802535484,30.93644164,177.31,177.26,54.71332564]
[1729802536292,30.93644164,177.31,177.26,23.776884]
[1729802537085,30.93644164,177.31,177.26,54.71332564]
[1729802537275,37.22454164,177.32,177.26,54.71332564]
[1729802538393,30.93644164,177.31,177.26,54.71332564]
[1729802538581,37.22454164,177.32,177.26,54.71332564]
[1729802538910,37.22454164,177.32,177.28,23.776884]
[1729802539394,6.2881,177.32,177.28,54.71332564]
[1729802540516,37.22454164,177.32,177.28,23.776884]
[1729802540936,6.2881,177.32,177.28,54.71332564]
[1729802541417,37.22454164,177.32,177.28,23.776884]
[1729802542008,47.15858434,177.33,177.28,23.776884]
[1729802542208,47.15858434,177.33,177.28,54.71332564]
[1729802542611,16.2221427,177.33,177.28,54.71332564]
[1729802542914,0.5970427,177.33,177.3,54.71332564]
[1729802543315,0.5970427,177.33,177.31,30.93644164]
[1729802543525,0.5970427,177.33,177.32,23.776884]
[1729802544010,0.5970427,177.33,177.32,54.71332564]
[1729802544188,0.5970427,177.33,177.32,54.83881564]
[1729802544813,0.5970427,177.33,177.32,54.96430564]
[1729802549104,31.53348434,177.33,177.25,1.12753849]
[1729802549297,0.5970427,177.33,177.29,30.93644164]
[1729802550110,0.5970427,177.33,177.3,30.93644164]
[1729802550401,0.5970427,177.33,177.31,23.776884]
[1729802551384,0.5970427,177.33,177.31,0.12549]
[1729802551588,0.5970427,177.33,177.32,30.93644164]
[1729802551978,0.5970427,177.33,177.32,54.71332564]
[1729802552398,0.5970427,177.33,177.32,54.83881564]
[1729802553004,0.5970427,177.33,177.32,55.08979564]
[1729802553603,0.5970427,177.33,177.32,54.96430564]
[1729802554794,0.5970427,177.33,177.32,54.96430564]
[1729802556113,0.5970427,177.33,177.32,54.83881564]
[1729802556805,0.5970427,177.33,177.32,30.93644164]
[1729802558007,0.5970427,177.33,177.32,54.71332564]
[1729802559792,0.5970427,177.33,177.31,23.776884]
[1729802560912,0.5970427,177.33,177.31,54.71332564]
[1729802562805,0.5970427,177.33,177.32,74.96430564]
[1729802563110,0.5970427,177.33,177.32,23.776884]
[1729802564996,0.5970427,177.33,177.32,54.71332564]
[1729802565194,0.5970427,177.33,177.32,23.776884]
[1729802566101,0.5970427,177.33,177.32,54.71332564]
[1729802569203,0.5970427,177.33,177.32,23.776884]
[1729802570894,0.5970427,177.33,177.31,23.776884]
[1729802571593,0.5970427,177.33,177.31,54.71332564]
[1729802573993,0.5970427,177.33,177.32,54.71332564]
[1729802574311,0.5970427,177.33,177.32,43.56644424]
[1729802574512,0.5970427,177.33,177.32,23.776884]
[1729802577028,0.5970427,177.33,177.31,23.776884]
[1729802581406,0.5970427,177.33,177.3,23.776884]
[1729802581602,20.38660294,177.33,177.3,23.776884]
[1729802582005,19.78956024,177.31,177.26,19.78956024]
[1729802583214,19.78956024,177.31,177.27,23.776884]
[1729802583393,22.7247427,177.33,177.27,43.56644424]
[1729802583394,19.78956024,177.32,177.27,43.56644424]
[1729802586814,42.51430294,177.33,177.28,19.78956024]
[1729802586993,0.5970427,177.33,177.31,19.78956024]
[1729802587192,0.5970427,177.33,177.32,23.776884]
[1729802588011,0.5970427,177.33,177.31,23.776884]
[1729802588205,0.5970427,177.33,177.31,43.56644424]
[1729802589111,0.5970427,177.33,177.29,19.78956024]
[1729802589294,0.5970427,177.33,177.3,23.776884]
[1729802590214,20.38660294,177.33,177.28,9.89478012]
[1729802590429,19.78956024,177.31,177.27,23.776884]
[1729802590725,19.78956024,177.32,177.27,43.56644424]
[1729802591820,20.38660294,177.33,177.27,43.56644424]
[1729802594412,19.78956024,177.32,177.27,43.56644424]
[1729802595432,19.78956024,177.32,177.27,23.776884]
[1729802598433,19.78956024,177.3,177.27,23.776884]
[1729802598734,19.78956024,177.3,177.21,16.0343]
[1729802598735,19.78956024,177.3,177.26,23.776884]
[1729802602222,9.89478012,177.3,177.26,23.776884]
[1729802602437,19.78956024,177.29,177.25,23.776884]
[1729802602733,19.78956024,177.28,177.25,23.776884]
[1729802602913,19.78956024,177.29,177.24,43.56644424]
[1729802604631,19.78956024,177.3,177.25,19.78956024]
[1729802604920,19.78956024,177.3,177.26,23.776884]
[1729802605127,20.63566217,177.3,177.26,23.776884]
[1729802614819,0.84610193,177.3,177.28,43.56644424]
[1729802615016,0.84610193,177.3,177.29,43.56644424]
[1729802616537,0.84610193,177.3,177.29,23.776884]
[1729802621730,0.84610193,177.3,177.29,43.56644424]
[1729802622134,0.84610193,177.3,177.29,23.776884]
[1729802627942,0.84610193,177.3,177.29,43.56644424]
[1729802628329,0.84610193,177.3,177.29,23.776884]
[1729802628540,0.84610193,177.3,177.29,43.56644424]
[1729802628925,0.5970427,177.33,177.29,43.56644424]
[1729802629125,0.5970427,177.33,177.3,43.56644424]
[1729802635255,0.5970427,177.33,177.3,23.776884]
[1729802636750,20.38660294,177.33,177.3,23.776884]
[1729802637053,20.38660294,177.33,177.29,23.776884]
[1729802637443,20.38660294,177.33,177.21,95.19254096]
[1729802637444,19.78956024,177.31,177.26,19.78956024]
[1729802638660,19.78956024,177.31,177.27,23.776884]
[1729802639039,19.78956024,177.31,177.26,23.776884]
[1729802641357,19.78956024,177.3,177.26,23.776884]
[1729802644053,19.78956024,177.31,177.26,43.56644424]
[1729802648750,25.42936024,177.31,177.26,43.56644424]
[1729802650965,19.78956024,177.3,177.26,23.776884]
[1729802653450,5.6395,177.32,177.26,23.776884]
[1729802653655,19.78956024,177.3,177.26,23.776884]
[1729802656281,19.78956024,177.31,177.26,43.56644424]
[1729802656571,19.78956024,177.3,177.26,23.776884]
[1729802656951,9.89478012,177.27,177.21,16.0343]
[1729802657152,9.89478012,177.22,177.17,9.89478012]
[1729802657357,19.78956024,177.21,177.16,35.96226024]
[1729802657675,19.78956024,177.22,177.17,19.78956024]
[1729802657873,0.94642977,177.27,177.18,19.78956024]
[1729802658069,0.84642977,177.27,177.22,19.78956024]
[1729802658274,0.84642977,177.27,177.23,19.78956024]
[1729802658484,20.63599001,177.27,177.22,19.78956024]
[1729802659577,20.63599001,177.27,177.23,23.776884]
[1729802665363,19.78956024,177.26,177.22,23.776884]
[1729802665680,0.84642977,177.27,177.22,43.56644424]
[1729802665681,20.63599001,177.27,177.22,43.56644424]
[1729802668062,10.74120989,177.27,177.23,19.78956024]
[1729802668262,0.84642977,177.27,177.24,23.776884]
[1729802668664,0.84642977,177.27,177.25,19.78956024]
[1729802669463,0.84642977,177.27,177.24,43.56644424]
[1729802672585,25.42996024,177.29,177.24,43.56644424]
[1729802673874,25.42996024,177.29,177.24,23.776884]
[1729802675592,19.78956024,177.29,177.24,43.56644424]
[1729802676316,35.32006024,177.3,177.24,43.56644424]
[1729802676591,19.78956024,177.3,177.24,43.56644424]
[1729802677479,19.78956024,177.31,177.26,43.56644424]
[1729802677696,20.0,177.31,177.26,43.56644424]
[1729802678178,39.78956024,177.31,177.26,43.56644424]
[1729802678381,20.0,177.32,177.28,23.776884]
[1729802678694,20.0,177.31,177.28,23.776884]
[1729802678892,20.0,177.31,177.27,23.776884]
[1729802679494,39.78956024,177.31,177.27,23.776884]
[1729802679674,19.78956024,177.3,177.26,23.776884]
[1729802680090,19.78956024,177.29,177.25,23.776884]
[1729802680501,19.78956024,177.29,177.24,23.776884]
[1729802681783,19.78956024,177.29,177.24,43.56644424]
[1729802682878,19.78956024,177.3,177.24,43.56644424]
[1729802683796,25.64,177.31,177.26,23.776884]
[1729802683995,19.78956024,177.3,177.26,23.776884]
[1729802685478,19.78956024,177.3,177.25,23.776884]
[1729802686880,25.42936024,177.31,177.26,19.78956024]
[1729802687390,25.42936024,177.31,177.27,23.776884]
[1729802687789,25.42936024,177.31,177.26,23.776884]
[1729802689710,19.78956024,177.3,177.25,23.776884]
[1729802689906,5.6398,177.31,177.27,23.776884]
[1729802690115,5.6395,177.32,177.27,43.56644424]
[1729802690318,25.42906024,177.32,177.27,43.56644424]
[1729802693107,1.44298238,177.33,177.3,23.276884]
[1729802693294,1.44298238,177.33,177.3,43.06644424]
[1729802693696,1.44298238,177.33,177.31,19.78956024]
[1729802694687,1.44298238,177.33,177.3,43.06644424]
[1729802696303,4.2267725,177.32,177.3,43.06644424]
[1729802696497,4.2267725,177.32,177.3,42.56644424]
[1729802696694,4.2267725,177.32,177.3,22.776884]
[1729802697298,19.78956024,177.31,177.3,22.776884]
[1729802698627,19.78956024,177.31,177.24,19.78956024]
[1729802698794,19.78956024,177.29,177.24,19.78956024]
[1729802700006,19.78956024,177.29,177.25,23.776884]
[1729802707619,19.78956024,177.3,177.25,43.56644424]
[1729802712525,0.5970427,177.33,177.29,19.78956024]
[1729802712713,0.5970427,177.33,177.3,43.56644424]
[1729802712908,20.38660294,177.33,177.3,23.776884]
[1729802713315,6.2362427,177.33,177.24,23.776884]
[1729802713516,19.78956024,177.3,177.26,23.776884]
[1729802713713,19.78956024,177.31,177.26,43.56644424]
[1729802714614,4.22863076,177.29,177.26,43.56644424]
[1729802715218,19.78956024,177.31,177.26,43.56644424]
[1729802716331,25.42926024,177.32,177.26,43.56644424]
[1729802716515,25.42926024,177.32,177.27,19.78956024]
[1729802716716,25.42926024,177.32,177.28,23.776884]
[1729802716925,4.23079445,177.31,177.28,23.776884]
[1729802717434,11.00006557,177.31,177.3,43.56644424]
[1729802717620,11.00006557,177.31,177.3,23.776884]
[1729802717828,11.00006557,177.31,177.29,23.776884]
[1729802718130,19.78956024,177.3,177.25,19.78956024]
[1729802718324,19.78956024,177.3,177.26,23.776884]
[1729802718518,35.02008197,177.31,177.26,43.56644424]
[1729802719121,30.78928752,177.31,177.26,43.56644424]
[1729802719629,10.99972728,177.31,177.28,23.776884]
[1729802719822,4.23045616,177.31,177.28,23.776884]
[1729802720529,25.42916024,177.32,177.28,23.776884]
[1729802721615,5.6396,177.32,177.28,43.56644424]
[1729802721912,25.42916024,177.32,177.28,23.776884]
[1729802722937,4.22906963,177.3,177.28,43.56644424]
[1729802723630,4.22906963,177.3,177.28,23.776884]
[1729802724529,19.78956024,177.32,177.28,23.776884]
[1729802724726,26.2363427,177.33,177.28,23.776884]
[1729802724928,19.78956024,177.32,177.28,23.776884]
[1729802725316,19.78956024,177.32,177.27,23.776884]
[1729802725932,26.2363427,177.33,177.27,23.776884]
[1729802726137,19.78956024,177.31,177.27,23.776884]
[1729802727440,25.42906024,177.32,177.27,23.776884]
[1729802729141,19.78956024,177.31,177.27,23.776884]
[1729802729524,24.01844003,177.31,177.27,23.776884]
[1729802730433,4.22887979,177.31,177.27,23.776884]
[1729802730834,24.01844003,177.31,177.27,23.776884]
[1729802731733,4.22887979,177.31,177.27,23.776884]
[1729802733927,4.22887979,177.31,177.27,43.56644424]
[1729802734244,6.2362427,177.33,177.27,43.56644424]
[1729802734447,19.78956024,177.32,177.27,43.56644424]
[1729802737746,19.78956024,177.32,177.27,23.776884]
[1729802739429,19.78956024,177.32,177.27,43.56644424]
[1729802740154,6.2362427,177.33,177.27,43.56644424]
[1729802740346,26.02580294,177.33,177.27,43.56644424]
[1729802740950,19.78956024,177.32,177.27,43.56644424]
[1729802741331,26.02580294,177.33,177.27,43.56644424]
[1729802741943,0.5970427,177.33,177.28,19.78956024]
[1729802742153,0.5970427,177.33,177.29,43.56644424]
[1729802742545,0.5970427,177.33,177.32,23.776884]
[1729802742849,20.38660294,177.33,177.28,19.78956024]
[1729802743039,19.78956024,177.32,177.29,23.776884]
[1729802743441,6.2363427,177.33,177.29,23.776884]
[1729802743752,6.2363427,177.33,177.23,20.25098]
[1729802743753,26.02590294,177.33,177.28,23.776884]
[1729802744137,6.2363427,177.33,177.28,23.776884]
[1729802744347,26.02590294,177.33,177.28,23.776884]
[1729802744943,26.02590294,177.33,177.28,43.56644424]
[1729802745137,19.78956024,177.32,177.28,23.776884]
[1729802745346,19.78956024,177.31,177.28,23.776884]
[1729802745849,19.78956024,177.32,177.27,43.56644424]
[1729802746630,19.78956024,177.32,177.27,23.776884]
[1729802747031,19.78956024,177.32,177.27,43.56644424]
[1729802749735,6.2363427,177.33,177.28,19.78956024]
[1729802749942,26.02590294,177.33,177.27,43.56644424]
[1729802750957,19.78956024,177.32,177.27,43.56644424]
[1729802751375,26.02590294,177.33,177.27,43.56644424]
[1729802752663,20.38660294,177.33,177.27,43.56644424]
[1729802754244,0.5970427,177.33,177.27,43.56644424]
[1729802754444,19.78956024,177.32,177.27,23.776884]
[1729802758668,0.5970427,177.33,177.31,23.776884]
[1729802758890,0.5970427,177.33,177.31,43.56644424]
[1729802759250,0.5970427,177.33,177.31,23.776884]
[1729802762062,0.5970427,177.33,177.31,43.56644424]
[1729802764669,0.5970427,177.33,177.31,23.776884]
[1729802766476,0.5970427,177.33,177.32,0.12549]
[1729802767270,0.5970427,177.33,177.31,0.12549]
[1729802774568,0.5970427,177.33,177.3,23.776884]
[1729802774868,19.78956024,177.31,177.26,19.78956024]
[1729802775271,19.78956024,177.32,177.27,19.78956024]
[1729802776265,19.78956024,177.32,177.28,23.776884]
[1729802777068,26.02610294,177.33,177.28,43.56644424]
[1729802779077,19.78956024,177.32,177.28,23.776884]
[1729802779777,19.78956024,177.3,177.21,6.3665]
[1729802780078,19.78956024,177.28,177.23,19.78956024]
[1729802781172,5.6407,177.29,177.24,43.56644424]
[1729802781392,25.43026024,177.29,177.24,43.56644424]
[1729802781573,5.6407,177.29,177.24,43.56644424]
[1729802781878,25.43026024,177.29,177.24,43.56644424]
[1729802782070,19.78956024,177.27,177.24,23.776884]
[1729802782385,19.78956024,177.28,177.24,23.776884]
[1729802783071,25.43036024,177.28,177.24,23.776884]
[1729802786286,5.6408,177.28,177.24,23.776884]
[1729802786489,5.6408,177.28,177.15,1.18070875]
[1729802786490,19.78956024,177.25,177.15,0.98070875]
[1729802786667,19.78956024,177.22,177.17,19.78956024]
[1729802787068,19.78956024,177.21,177.17,19.78956024]
[1729802787273,19.78956024,177.21,177.16,19.78956024]
[1729802788080,19.78956024,177.21,177.17,19.78956024]
[1729802788285,20.0,177.26,177.18,19.78956024]
[1729802788585,19.78956024,177.23,177.18,19.78956024]
[1729802789286,20.0,177.26,177.19,43.56644424]
[1729802789490,6.6628,177.27,177.23,43.56644424]
[1729802789792,32.09346024,177.27,177.23,23.776884]
[1729802790376,6.6628,177.27,177.23,43.56644424]
[1729802790698,1.24286289,177.28,177.24,19.78956024]
[1729802790985,6.88366289,177.28,177.24,19.78956024]
[1729802792991,1.24286289,177.28,177.25,19.78956024]
[1729802795297,0.3966524,177.28,177.26,19.78956024]
[1729802795483,0.3966524,177.28,177.26,23.776884]
[1729802796093,0.3966524,177.28,177.25,23.776884]
[1729802797602,19.78956024,177.27,177.21,20.12549]
[1729802797779,6.0376524,177.28,177.16,16.0156]
[1729802797780,19.78956024,177.24,177.16,16.0156]
[1729802797980,19.78956024,177.24,177.19,19.78956024]
[1729802798297,19.78956024,177.24,177.16,16.0156]
[1729802798482,19.78956024,177.24,177.19,19.78956024]
[1729802798793,15.5628,177.26,177.17,19.78956024]
[1729802798794,19.78956024,177.21,177.17,19.78956024]
[1729802799090,19.78956024,177.22,177.17,19.78956024]
[1729802800880,5.6427,177.22,177.18,43.56644424]
[1729802801286,25.43226024,177.22,177.18,23.776884]
[1729802801492,19.78956024,177.21,177.17,23.776884]
[1729802801872,19.78956024,177.2,177.17,23.776884]
[1729802802073,19.78956024,177.2,177.16,23.776884]
[1729802802599,19.78956024,177.19,177.15,23.776884]
[1729802802782,5.643,177.21,177.15,43.56644424]
[1729802802989,19.78956024,177.2,177.15,43.56644424]
[1729802804079,25.43286024,177.2,177.15,43.56644424]
[1729802804495,5.6433,177.2,177.15,23.776884]
[1729802804797,19.78956024,177.19,177.15,23.776884]
[1729802804996,19.78956024,177.19,177.14,43.56644424]
[1729802805711,25.43326024,177.19,177.14,43.56644424]